bitfinex/quotes_ETHUSD_20260113
["timestamp","ask_amount","ask_price","bid_price","bid_amount"]
[1768333226823,3.86863684,3205.7,3205.3,0.0008008]
[1768333228415,0.74919335,3205.7,3205.3,0.0008008]
[1768333228616,0.247,3206.0,3205.3,1.26489537]
[1768333228821,3.11929841,3205.9,3205.3,1.26489537]
[1768333229021,6.23859682,3205.9,3205.3,1.26489537]
[1768333229399,3.11929841,3205.9,3205.3,1.26489537]
[1768333230902,3.1208841,3206.3,3206.0,1.26409457]
[1768333230903,0.002,3206.3,3206.0,1.26409457]
[1768333231104,3.11871398,3206.5,3206.0,1.242409]
[1768333231606,3.12061109,3206.6,3206.0,1.242409]
[1768333231933,6.23922218,3206.6,3206.0,1.242409]
[1768333232234,6.8631444,3206.6,3206.0,1.242409]
[1768333233430,1e-08,3206.9,3205.6,7.78836087]
[1768333233431,3.11837345,3206.8,3206.4,1.26409457]
[1768333234621,6.2367469,3206.8,3206.4,1.26409457]
[1768333234939,3.11837345,3206.8,3206.4,1.26409457]
[1768333235240,6.23655243,3206.9,3206.0,1.24892955]
[1768333235408,7.19671888,3206.9,3206.0,1.24892955]
[1768333235608,7.19671888,3206.9,3206.0,1.49392955]
[1768333236034,7.19671888,3206.9,3206.0,1.24892955]
[1768333237322,0.03897966,3206.8,3206.0,1.24892955]
[1768333237837,7.19671888,3206.9,3206.0,1.24892955]
[1768333238537,6.23655243,3206.9,3206.0,1.71025689]
[1768333238736,6.23655243,3206.9,3206.1,1.24892955]
[1768333238910,3.11827622,3206.9,3206.1,1.24892955]
[1768333239106,6.23655243,3206.9,3206.1,1.24892955]
[1768333242944,6.23655243,3206.9,3205.8,1.24892955]
[1768333243240,6.23655243,3206.9,3206.0,1.49392955]
[1768333243542,0.002,3207.1,3206.3,1.24892955]
[1768333243749,3.12014066,3207.1,3206.2,1.24892955]
[1768333244046,0.002,3207.1,3206.4,1.24892955]
[1768333244346,0.002,3206.6,3206.5,1.24892955]
[1768333244546,0.002,3207.1,3206.6,1.24892955]
[1768333246022,0.002,3207.1,3206.3,0.246]
[1768333246227,0.002,3207.1,3206.3,1.49492955]
[1768333246948,0.002,3207.1,3206.3,0.001]
[1768333246949,1.2642944,3207.0,3206.3,0.001]
[1768333247446,0.62577746,3207.1,3206.3,1.24992955]
[1768333247842,0.62577746,3207.1,3206.3,0.001]
[1768333248042,6.23635796,3207.0,3206.3,0.001]
[1768333248750,1.2642944,3206.8,3205.5,1.24892955]
[1768333248956,1.2642944,3206.6,3205.5,1.24892955]
[1768333249926,1.2642944,3206.6,3205.4,1.24892955]
[1768333250130,7.50162482,3206.5,3205.4,1.24892955]
[1768333250627,7.50162482,3206.5,3205.4,1.49392955]
[1768333250832,1.2642944,3206.4,3205.4,1.24892955]
[1768333251047,1.2642944,3206.4,3205.3,0.0008008]
[1768333251459,1.2642944,3206.4,3205.3,4.36948251]
[1768333251859,1.2642944,3206.4,3205.3,1.24973035]
[1768333252260,1.2642944,3206.2,3205.3,0.0008008]
[1768333252464,6.23771948,3206.3,3205.3,0.0008008]
[1768333252465,1.2642944,3206.0,3205.3,0.0008008]
[1768333252712,0.0008008,3205.7,3204.8,0.245]
[1768333252959,0.0008008,3205.7,3204.6,3.121476]
[1768333252960,1.2642944,3205.5,3204.6,0.001]
[1768333254464,6.23947088,3205.4,3204.6,0.001]
[1768333254865,7.50376528,3205.4,3204.6,0.001]
[1768333255053,0.68643126,3205.3,3204.6,0.001]
[1768333255435,0.68643126,3205.3,3204.3,1.24892955]
[1768333255636,1.95072566,3205.3,3204.2,1.24892955]
[1768333256249,1.95072566,3205.3,3204.2,1.24792955]
[1768333256456,7.50415462,3205.2,3204.2,1.24792955]
[1768333256769,0.62377746,3205.1,3204.2,1.24892955]
[1768333258740,6.2402496,3205.0,3204.2,1.24892955]
[1768333260974,6.2396941,3205.3,3204.3,1.24892955]
[1768333261176,9.35955543,3205.3,3204.0,0.245]
[1768333261398,1.2642944,3205.1,3204.1,1.49392955]
[1768333261882,1.2642944,3205.1,3204.1,1.24892955]
[1768333262244,3.1201248,3205.0,3204.1,1.24892955]
[1768333262561,6.2402496,3205.0,3204.1,1.24892955]
[1768333263589,3.1201248,3205.0,3204.1,1.24892955]
[1768333263744,6.61430278,3205.0,3204.1,1.24892955]
[1768333263940,7.87859718,3205.0,3203.9,1.49392955]
[1768333264154,7.87859718,3205.0,3203.9,4.61510604]
[1768333264346,7.87859718,3205.0,3203.9,1.49392955]
[1768333264549,7.87859718,3205.0,3204.0,4.37002341]
[1768333264882,0.81235972,3204.9,3204.0,4.37002341]
[1768333265186,0.81235972,3204.9,3204.0,1.24892955]
[1768333266083,0.81235972,3204.9,3203.8,1.30951036]
[1768333266848,1.31601533,3204.7,3203.8,0.245]
[1768333267084,6.24063904,3204.8,3203.8,1.55451036]
[1768333267085,0.497849,3204.6,3203.8,1.55451036]
[1768333268250,0.497849,3204.6,3203.9,1.30951036]
[1768333268565,0.497849,3204.6,3204.4,0.001]
[1768333268770,3.12061163,3204.5,3203.8,0.245]
[1768333269076,3.12061163,3204.5,3203.7,1.30951036]
[1768333269288,3.12061163,3204.5,3203.7,1.55451036]
[1768333269581,3.61405923,3204.5,3203.7,1.30951036]
[1768333269877,3.61405923,3204.5,3203.7,1.55451036]
[1768333270478,3.61405923,3204.5,3203.7,1.30951036]
[1768333270682,1.56101533,3204.4,3202.9,3.12211233]
[1768333270885,1.31601533,3204.2,3203.0,1.30951036]
[1768333271058,2.13277645,3204.1,3203.0,1.30951036]
[1768333271466,2.13277645,3204.1,3203.2,1.30951036]
[1768333271664,0.81676112,3204.1,3203.2,1.30951036]
[1768333271900,0.81676112,3204.1,3203.3,0.0312178]
[1768333272196,0.81676112,3204.1,3203.2,1.30951036]
[1768333272501,0.21327764,3204.0,3203.2,1.30951036]
[1768333272974,0.21327764,3204.0,3202.9,3.12212903]
[1768333272975,6.24239208,3203.9,3202.9,1.30951036]
[1768333273898,7.55840741,3203.9,3202.9,1.30951036]
[1768333274394,1.31601533,3203.7,3202.5,1.55451036]
[1768333274762,1.31601533,3203.7,3202.5,4.67706416]
[1768333274967,3.12158576,3203.5,3202.6,4.43196225]
[1768333275171,3.12158576,3203.5,3202.7,1.30951036]
[1768333275800,6.24317152,3203.5,3202.7,1.30951036]
[1768333276165,7.55918685,3203.5,3202.5,1.30951036]
[1768333276766,4.67458558,3203.2,3202.3,0.00199245]
[1768333277077,6.2441461,3203.0,3202.3,0.00199245]
[1768333277807,7.47725447,3203.0,3202.3,0.00199245]
[1768333279974,4.35518142,3203.0,3202.3,0.00199245]
[1768333280174,4.35518142,3203.0,3202.6,0.001]
[1768333280392,1.23310837,3202.9,3202.3,0.00199245]
[1768333280598,0.43551814,3202.8,3202.3,0.00199245]
[1768333282971,1.23310837,3203.8,3202.8,1.28994858]
[1768333283169,3.36632677,3203.8,3203.0,4.67458558]
[1768333283476,6.48765354,3203.8,3203.1,1.28994858]
[1768333284375,6.48765354,3203.8,3202.8,1.53494858]
[1768333284570,6.48765354,3203.8,3202.8,1.28994858]
[1768333284786,7.72076191,3203.8,3202.8,1.28994858]
[1768333285371,3.36632677,3203.8,3202.9,4.41211352]
[1768333285574,0.245,3204.1,3203.0,1.28994858]
[1768333285997,0.245,3204.1,3203.2,1.28994858]
[1768333285998,3.12109862,3204.0,3203.2,1.28994858]
[1768333286575,6.24219724,3204.0,3203.2,1.28994858]
[1768333287907,3.12109862,3204.0,3203.2,1.28994858]
[1768333288101,6.24219724,3204.0,3203.2,1.73114916]
[1768333288499,3.12109862,3204.0,3203.2,1.28994858]
[1768333289310,3.36601783,3204.1,3203.3,1.28994858]
[1768333289612,3.12101783,3204.1,3203.3,1.28994858]
[1768333289790,0.247,3204.3,3203.3,1.28994858]
[1768333289991,6.48868426,3204.3,3203.5,1.28994858]
[1768333290581,10.84263476,3204.3,3203.4,0.75336889]
[1768333290817,1.23310837,3204.2,3202.8,1.28994858]
[1768333291179,1.23310837,3204.0,3202.6,3.36739585]
[1768333291377,1.23310837,3203.8,3202.7,1.75568302]
[1768333291598,1.27212575,3203.7,3202.7,1.75568302]
[1768333291803,1.23310837,3203.7,3202.7,1.75568302]
[1768333291998,1.23310837,3203.7,3202.7,4.87804746]
[1768333292202,3.12148832,3203.6,3202.7,4.87804746]
[1768333292399,3.12142022,3203.7,3202.9,1.28994858]
[1768333292913,3.36630131,3203.8,3202.9,1.28994858]
[1768333293212,3.36630131,3203.8,3202.9,1.32117028]
[1768333293583,3.36630131,3203.8,3202.9,1.28994858]
[1768333294088,3.36631354,3203.8,3202.8,1.32117126]
[1768333294292,3.12142919,3203.7,3202.9,1.32117028]
[1768333294497,3.36633047,3203.8,3202.9,1.32117028]
[1768333294681,0.245,3203.8,3202.9,1.32117028]
[1768333294880,3.36631698,3203.8,3202.9,1.28994858]
[1768333295509,3.36631698,3203.8,3202.9,1.53494858]
[1768333295713,0.002,3204.0,3203.0,1.31320304]
[1768333295888,1.31486204,3204.9,3203.7,1.31320304]
[1768333295889,3.12256929,3204.6,3203.7,1.31320304]
[1768333296091,0.002,3204.6,3203.9,1.31320304]
[1768333296686,3.12177542,3205.4,3204.4,1.31320304]
[1768333296890,0.002,3205.4,3204.6,1.31320304]
[1768333297313,1.31686204,3205.9,3204.7,1.31320304]
[1768333297314,0.002,3205.9,3204.7,1.31320304]
[1768333297503,0.002,3205.9,3204.9,1.31320304]
[1768333297701,0.002,3205.9,3205.1,1.31320304]
[1768333298022,3.12126953,3205.9,3205.1,1.31320304]
[1768333298618,0.002,3205.9,3205.1,1.31320304]
[1768333299824,0.002,3205.9,3205.2,1.31320304]
[1768333300801,0.34498874,3205.6,3205.2,1.31320304]
[1768333301324,0.34498874,3205.6,3205.1,0.245]
[1768333301488,0.34498874,3205.6,3205.2,0.245]
[1768333302142,0.34498874,3205.6,3204.9,1.31320304]
[1768333302428,0.34498874,3205.6,3204.4,1.31320304]
[1768333302740,6.23947088,3205.4,3204.4,1.55820304]
[1768333302888,6.23947088,3205.4,3204.5,1.31320304]
[1768333302889,0.0389979,3205.3,3204.5,1.31320304]
[1768333303095,0.0028008,3205.7,3205.1,1.31320304]
[1768333303391,0.002,3205.9,3205.6,1.31320304]
[1768333303593,0.002,3205.9,3205.7,0.245]
[1768333303792,1.31486204,3206.9,3205.8,0.245]
[1768333304023,0.44350581,3206.8,3205.9,1.31320304]
[1768333304924,6.2369414,3206.7,3205.9,1.31320304]
[1768333305297,6.2369414,3206.7,3206.0,0.245]
[1768333305502,1.31486204,3206.6,3205.3,0.00080088]
[1768333306013,1.31486204,3206.6,3205.4,0.245]
[1768333306329,2.1108057,3206.5,3205.4,0.245]
[1768333306528,2.1108057,3206.5,3205.4,0.246]
[1768333306907,6.23952494,3206.4,3205.4,0.246]
[1768333308193,3.12076247,3206.4,3205.4,4.67893259]
[1768333308627,3.12076247,3206.4,3205.5,1.31320304]
[1768333308799,0.002,3206.4,3205.5,1.78117639]
[1768333309814,0.002,3206.4,3205.6,1.31320304]
[1768333310133,0.002,3206.7,3206.0,1.31320304]
[1768333310324,0.002,3206.7,3206.1,0.245]
[1768333311049,0.002,3206.7,3205.7,1.31320304]
[1768333311345,0.002,3206.7,3205.8,0.245]
[1768333311537,0.002,3206.7,3205.9,0.46776064]
[1768333312049,0.002,3206.7,3206.0,0.245]
[1768333313615,0.002,3206.7,3206.0,1.55820304]
[1768333314313,0.002,3206.7,3206.1,0.245]
[1768333314644,0.002,3206.7,3205.7,1.31320304]
[1768333314845,0.002,3206.7,3205.8,0.245]
[1768333315148,0.62387469,3206.6,3205.8,0.245]
[1768333315349,3.11866521,3206.5,3205.8,0.245]
[1768333315853,3.11866521,3206.5,3205.9,0.245]
[1768333316754,3.11866521,3206.5,3205.7,1.31320304]
[1768333317052,3.11866521,3206.5,3205.9,0.245]
[1768333317255,3.73423999,3206.5,3205.9,0.245]
[1768333317850,0.61557478,3206.5,3205.9,0.245]
[1768333318015,3.11860877,3206.6,3205.9,0.245]
[1768333318221,0.002,3207.0,3206.3,1.31320304]
[1768333318441,0.002,3207.0,3206.4,0.245]
[1768333318648,1.31686204,3207.6,3206.4,1.55820304]
[1768333318851,3.11969495,3207.5,3206.4,1.55820304]
[1768333319419,6.2373899,3207.5,3206.4,1.55820304]
[1768333319740,0.002,3206.7,3206.4,1.55820304]
[1768333320053,0.002,3207.5,3206.5,1.780907]
[1768333320349,0.002,3207.5,3206.5,1.31320304]
[1768333320558,0.002,3207.5,3206.2,1.31420304]
[1768333320863,1.31686204,3207.5,3206.2,0.001]
[1768333321024,1.31486204,3207.3,3206.2,0.001]
[1768333321219,0.245,3207.4,3205.3,1.31400392]
[1768333321220,1.31486204,3207.1,3205.3,1.31400392]
[1768333321436,1.31486204,3207.1,3205.4,0.246]
[1768333321623,9.35453694,3207.0,3205.4,1.55920304]
[1768333321944,9.35453694,3207.0,3205.6,1.31320304]
[1768333322147,10.66939898,3207.0,3205.6,1.31320304]
[1768333322356,3.11781235,3207.4,3205.8,1.31320304]
[1768333322850,3.11781235,3207.4,3205.5,5.92509458]
[1768333322851,0.002,3207.5,3206.0,1.31320304]
[1768333323033,0.002,3207.5,3206.2,1.31320304]
[1768333323439,3.11970571,3207.5,3206.2,1.31320304]
[1768333323640,6.23741142,3207.5,3206.2,1.31320304]
[1768333324154,1.31686204,3207.5,3205.9,4.43239515]
[1768333324351,1.31686204,3207.5,3206.0,0.68823952]
[1768333324533,1.31686204,3207.5,3206.0,3.80735457]
[1768333324735,1.31686204,3207.5,3206.0,0.44323952]
[1768333324936,1.31686204,3207.5,3205.9,1.31320304]
[1768333324937,1.31686204,3207.5,3206.1,0.245]
[1768333325634,1.31686204,3207.5,3206.2,0.245]
[1768333326054,4.37089303,3207.4,3206.0,1.28048532]
[1768333326252,1.25310292,3207.3,3206.0,1.28048532]
[1768333326555,1.25310292,3207.3,3205.7,3.11940399]
[1768333326853,1.25310292,3207.3,3205.8,0.99694046]
[1768333327352,1.25310292,3207.3,3205.9,0.245]
[1768333327524,1.25310292,3207.3,3205.8,0.75194046]
[1768333328018,1.25310292,3207.3,3205.9,0.245]
[1768333328358,1.25310292,3207.1,3205.9,0.245]
[1768333329036,1.25310292,3207.1,3205.8,0.75194046]
[1768333329236,1.25310292,3207.0,3205.9,0.245]
[1768333330359,0.7489072,3207.1,3205.7,0.245]
[1768333330360,1.25310292,3206.8,3205.7,0.245]
[1768333330947,1.25310292,3206.8,3206.1,0.001]
[1768333332255,1.25310292,3206.6,3206.1,0.001]
[1768333334154,6.23733042,3206.5,3206.1,0.001]
[1768333334361,1.25310292,3206.3,3205.4,0.246]
[1768333334738,1.25310292,3206.3,3205.4,0.001]
[1768333335137,0.49054227,3206.4,3205.4,1.28148532]
[1768333336270,1.25310292,3206.3,3205.4,0.001]
[1768333336473,0.7489072,3206.2,3205.4,0.001]
[1768333336628,0.7489072,3206.2,3205.4,1.28873556]
[1768333336829,0.7489072,3206.2,3205.5,0.03119638]
[1768333337645,0.7489072,3206.2,3205.4,0.001]
[1768333338252,3.1190543,3206.1,3205.4,0.001]
[1768333339066,6.2381086,3206.1,3205.4,0.001]
[1768333339280,6.72865087,3206.1,3205.4,0.001]
[1768333340280,0.002,3207.3,3205.9,1.28773556]
[1768333340463,1.24265446,3206.8,3205.4,0.001]
[1768333340873,1.24265446,3206.6,3205.4,0.001]
[1768333342469,1.24265446,3206.4,3205.4,0.001]
[1768333342638,1.24265446,3206.2,3205.4,0.001]
[1768333343147,1.24265446,3206.2,3205.7,0.001]
[1768333343342,1.24265446,3206.2,3205.4,0.001]
[1768333343882,6.23733042,3206.5,3205.4,1.28873556]
[1768333344077,0.62373304,3206.4,3205.4,1.28873556]
[1768333344367,6.23771948,3206.3,3205.4,1.28873556]
[1768333347584,6.23771948,3206.3,3205.4,0.001]
[1768333347791,7.48037394,3206.3,3205.4,0.001]
[1768333349550,1.24265446,3206.2,3205.4,0.001]
[1768333349855,1.81724744,3206.2,3205.4,0.001]
[1768333351071,6.2381086,3206.1,3205.4,0.001]
[1768333351275,3.1190543,3206.1,3205.4,0.001]
[1768333351583,6.2381086,3206.1,3205.4,0.001]
[1768333352487,3.1190543,3206.1,3205.4,0.001]
[1768333353287,6.2381086,3206.1,3205.4,0.001]
[1768333354400,6.2381086,3206.1,3205.7,0.001]
[1768333354597,6.86184164,3206.1,3205.7,0.001]
[1768333355167,8.10065088,3206.1,3205.7,0.001]
[1768333355367,8.10065088,3206.1,3205.4,0.001]
[1768333355579,6.86184164,3206.1,3205.4,0.001]
[1768333357699,3.74278734,3206.1,3205.4,0.001]
[1768333357869,3.74278734,3206.1,3205.4,1.24057729]
[1768333358065,6.86186847,3206.1,3205.4,0.001]
[1768333358282,0.57459298,3206.0,3205.4,0.001]
[1768333359874,3.11924888,3205.9,3205.4,0.001]
[1768333361115,6.23849776,3205.9,3205.4,0.001]
[1768333361417,3.11924888,3205.9,3205.4,0.001]
[1768333362376,6.23849776,3205.9,3205.4,0.001]
[1768333362793,6.8622308,3205.9,3205.3,1.24037817]
[1768333364189,8.10104004,3205.9,3205.3,0.00080088]
[1768333365817,6.8622308,3205.9,3205.3,0.00080088]
[1768333366316,6.8622308,3205.9,3204.6,1.23957729]
[1768333366317,1.23880924,3205.6,3204.6,1.23957729]
[1768333366482,1.23880924,3205.6,3204.6,1.48457729]
[1768333366679,1.81340222,3205.6,3204.6,1.51578243]
[1768333366879,0.57459298,3205.6,3204.6,1.48457729]
[1768333367190,7.4784971,3205.7,3204.8,1.23957729]
[1768333367394,6.23968786,3205.7,3204.8,1.23957729]
[1768333367891,1.23880924,3205.6,3204.8,1.23957729]
[1768333368090,1.23880924,3205.6,3204.6,1.48457729]
[1768333368291,0.00080088,3205.7,3204.6,1.48457729]
[1768333368495,0.00080088,3205.7,3204.8,1.23957729]
[1768333370141,3.1195408,3205.6,3204.8,1.23957729]
[1768333370946,1.23880924,3205.5,3204.5,3.6875825]
[1768333371231,1.23880924,3205.5,3202.9,3.48007862]
[1768333371232,1.23880924,3205.5,3204.2,0.245]
[1768333371536,1.23880924,3205.3,3204.2,0.245]
[1768333372028,1.23880924,3205.3,3203.9,1.23957729]
[1768333372214,1.23880924,3205.1,3204.0,0.245]
[1768333372416,1.23880924,3205.1,3203.9,1.23957729]
[1768333372796,1.23880924,3205.1,3204.0,0.245]
[1768333372996,1.23880924,3204.9,3204.0,0.245]
[1768333373196,1.23880924,3204.9,3203.9,1.23957729]
[1768333373397,1.23880924,3204.9,3203.8,0.245]
[1768333374429,1.23880924,3204.7,3203.2,1.23957729]
[1768333374728,1.23880924,3204.7,3203.4,1.23957729]
[1768333374937,1.23880924,3204.6,3203.4,1.23957729]
[1768333375106,1.23880924,3204.6,3203.5,0.245]
[1768333375305,1.23880924,3204.6,3203.6,1.23957729]
[1768333376403,3.12061163,3204.5,3203.6,1.23957729]
[1768333376605,3.12061163,3204.5,3203.7,0.245]
[1768333378630,5.10741631,3204.5,3203.7,0.245]
[1768333379530,5.10741631,3204.5,3204.0,0.001]
[1768333380205,8.22802794,3204.5,3204.0,0.001]
[1768333380707,4.35960988,3204.4,3204.0,0.001]
[1768333380908,3.86865103,3204.5,3204.0,0.001]
[1768333381733,3.12018885,3205.0,3204.0,1.24057729]
[1768333381941,3.12018885,3205.0,3204.2,1.23957729]
[1768333382139,3.12018885,3205.0,3204.4,1.23957729]
[1768333382319,7.47918694,3205.0,3204.1,1.23957729]
[1768333382748,7.47918694,3205.0,3204.0,0.001]
[1768333382749,4.35899809,3205.0,3204.2,1.48457729]
[1768333383111,6.2403777,3205.0,3204.2,1.48457729]
[1768333383309,6.2403777,3205.0,3204.3,0.245]
[1768333383523,6.2403777,3205.0,3204.2,1.23957729]
[1768333383727,6.2403777,3205.0,3204.3,0.245]
[1768333385043,1.32377354,3204.9,3204.2,0.245]
[1768333385237,1.32377354,3204.9,3204.0,1.22897114]
[1768333385238,1.32377354,3204.9,3204.0,0.001]
[1768333385439,6.98829639,3205.0,3204.0,1.22897114]
[1768333385649,3.12018885,3205.0,3204.2,1.22797114]
[1768333386866,6.23966554,3205.3,3204.2,1.22797114]
[1768333387434,3.11983277,3205.3,3204.2,1.22797114]
[1768333387631,3.11983277,3205.3,3204.4,1.22797114]
[1768333387908,6.23966554,3205.3,3204.6,1.22797114]
[1768333388035,6.88813209,3205.3,3204.6,1.22797114]
[1768333390067,6.88813209,3205.3,3204.5,0.245]
[1768333390068,0.00080088,3205.7,3204.5,1.47297114]
[1768333390246,3.1195408,3205.6,3204.5,1.47297114]
[1768333390445,6.2390816,3205.6,3204.5,1.47297114]
[1768333391074,0.00080088,3205.7,3204.9,1.22897114]
[1768333391540,0.00080088,3205.7,3205.0,0.245]
[1768333391994,0.00080088,3205.7,3204.9,1.22897114]
[1768333392289,0.00080088,3205.7,3204.9,1.47397114]
[1768333394763,0.00080088,3205.7,3205.1,1.22797114]
[1768333395362,0.00080088,3205.7,3205.2,0.245]
[1768333395992,0.00080088,3205.7,3205.2,1.47297114]
[1768333397896,0.00080088,3205.7,3205.2,1.45197114]
[1768333399201,0.00080088,3205.7,3205.2,0.245]
[1768333399573,0.00080088,3205.7,3205.0,1.35690494]
[1768333399771,0.00080088,3205.7,3205.1,0.245]
[1768333400170,0.00080088,3205.7,3205.1,0.40529049]
[1768333400502,0.00080088,3205.7,3205.1,1.76219543]
[1768333400902,4.66863585,3205.6,3204.9,0.001]
[1768333401207,3.11963812,3205.5,3205.0,0.245]
[1768333402006,3.11956803,3205.6,3205.0,0.245]
[1768333402176,0.00080088,3205.7,3205.0,1.60190494]
[1768333402379,3.1202683,3205.7,3205.0,1.60190494]
[1768333403106,0.002,3205.4,3205.0,1.60190494]
[1768333403295,0.002,3205.4,3205.0,1.76219543]
[1768333403494,0.002,3205.4,3205.1,1.35690494]
[1768333404075,0.002,3205.4,3205.3,1.35690494]
[1768333404601,0.002,3205.4,3205.1,1.35690494]
[1768333404977,0.002,3205.4,3204.9,0.001]
[1768333405279,0.002,3205.4,3205.1,0.245]
[1768333405898,0.002,3205.4,3204.9,0.246]
[1768333406487,0.002,3205.4,3204.9,0.001]
[1768333406690,0.002,3205.4,3205.0,0.245]
[1768333407523,0.002,3205.4,3205.0,1.60190494]
[1768333408709,0.002,3205.4,3205.0,1.35690494]
[1768333409009,0.46906359,3205.4,3204.9,0.001]
[1768333409910,3.58881179,3205.4,3204.9,0.001]
[1768333410788,6.70855999,3205.4,3204.9,0.001]
[1768333410984,1.23747963,3205.3,3204.3,1.35690494]
[1768333411206,1.23747963,3205.3,3204.3,1.60190494]
[1768333411516,0.73126243,3205.2,3204.3,1.60190494]
[1768333411804,3.85128488,3205.2,3204.3,1.60190494]
[1768333412311,6.97130733,3205.2,3204.3,1.60190494]
[1768333412489,3.85128488,3205.2,3204.3,1.60190494]
[1768333413834,1.23747963,3205.1,3204.3,0.245]
[1768333414119,0.46706359,3205.0,3204.3,1.60190494]
[1768333414290,6.2400449,3205.2,3204.3,1.60190494]
[1768333415124,6.2400449,3205.2,3204.3,1.35690494]
[1768333415322,6.2400449,3205.2,3204.0,0.001]
[1768333415323,4.66863585,3204.6,3204.0,0.001]
[1768333415621,1.32783877,3204.8,3204.0,0.001]
[1768333415823,3.12041688,3204.7,3204.0,0.001]
[1768333416515,3.12041688,3204.7,3204.6,0.001]
[1768333416718,3.12041688,3204.7,3204.0,0.001]
[1768333416922,4.66863585,3204.1,3203.2,1.23049594]
[1768333417094,4.66863585,3204.1,3203.0,1.23049594]
[1768333417095,4.66863585,3203.7,3203.0,1.23049594]
[1768333417294,4.66863585,3204.0,3203.0,1.23049594]
[1768333417498,4.66863585,3204.3,3203.0,1.23049594]
[1768333417693,0.59964746,3204.2,3203.0,1.23049594]
[1768333418012,6.24200242,3204.1,3203.0,1.23049594]
[1768333419022,1.32783877,3205.1,3203.7,1.23049594]
[1768333419181,1.32783877,3204.7,3203.5,0.245]
[1768333419526,5.99647462,3204.5,3203.5,1.47549594]
[1768333419822,6.59612208,3204.5,3203.6,0.03121488]
[1768333420022,6.24141804,3204.4,3203.5,1.47549594]
[1768333420522,6.24141804,3204.4,3203.5,1.23049594]
[1768333421827,3.12070902,3204.4,3203.5,1.23049594]
[1768333422032,7.56925681,3204.4,3203.5,1.23049594]
[1768333422199,7.56925681,3204.4,3203.5,1.47549594]
[1768333422398,7.56925681,3204.4,3203.5,1.23049594]
[1768333422618,7.56925681,3204.4,3203.5,1.47549594]
[1768333423628,4.44854779,3204.4,3203.5,1.47549594]
[1768333424420,1.32783877,3204.8,3203.8,1.23049594]
[1768333424621,1.32783877,3204.8,3203.9,0.58991318]
[1768333426444,7.56867253,3204.7,3203.8,1.23049594]
[1768333428134,0.002,3204.5,3203.8,1.23049594]
[1768333428631,0.002,3204.5,3204.0,1.23049594]
[1768333428798,0.002,3204.5,3204.0,1.47549594]
[1768333428999,0.002,3204.5,3204.0,1.23049594]
[1768333431149,0.002,3204.5,3203.7,1.23049594]
[1768333431319,0.002,3204.5,3203.8,0.83491318]
[1768333431650,0.002,3204.5,3203.8,0.245]
[1768333431848,0.002,3204.5,3203.7,1.23049594]
[1768333432011,0.002,3204.5,3203.9,0.245]
[1768333435752,0.002,3204.5,3203.7,1.23049594]
[1768333435924,1.32983877,3204.5,3203.8,0.245]
[1768333436856,0.002,3204.5,3203.8,1.47549594]
[1768333437423,0.002,3204.8,3204.3,1.23049594]
[1768333437739,3.12022215,3204.9,3204.4,0.58991318]
[1768333437952,1.35186537,3204.8,3203.8,3.85]
[1768333438246,1.32783877,3204.7,3203.9,0.245]
[1768333439154,5.99647462,3204.5,3203.8,3.85]
[1768333439327,1.32783877,3204.4,3203.8,4.095]
[1768333440043,1.32783877,3204.4,3203.8,3.85]
[1768333440245,4.4486223,3204.4,3203.8,3.85]
[1768333440421,1.32783877,3204.4,3203.8,3.85]
[1768333440623,0.002,3204.2,3203.8,3.85]
[1768333441222,0.002,3204.2,3203.8,4.38254959]
[1768333441650,0.002,3204.2,3203.9,0.03121196]
[1768333441850,0.002,3204.2,3203.8,5.61304553]
[1768333442030,0.002,3204.5,3204.1,1.23049594]
[1768333443768,0.002,3204.5,3204.1,1.47549594]
[1768333444231,1.32983877,3204.5,3203.4,8.51863585]
[1768333444430,1.32983877,3204.5,3203.5,5.38218607]
[1768333444630,1.32983877,3204.5,3203.5,6.61268201]
[1768333445233,1.32983877,3204.5,3203.6,1.2588642]
[1768333445750,1.32983877,3204.5,3203.6,1.5038642]
[1768333446059,4.45054746,3204.5,3203.6,0.245]
[1768333446242,1.30205522,3204.4,3203.6,0.245]
[1768333446441,1.30205522,3204.4,3203.6,0.78038642]
[1768333448164,1.30205522,3204.4,3203.3,4.66963585]
[1768333448165,1.30205522,3203.8,3203.3,0.001]
[1768333450134,3.12116051,3204.0,3203.3,0.001]
[1768333450454,4.42321573,3204.0,3203.3,0.001]
[1768333450637,1.30205522,3203.9,3203.3,0.001]
[1768333450844,1.30205522,3203.8,3203.3,0.001]
[1768333451864,0.77893762,3203.9,3203.3,0.001]
[1768333452037,4.66776424,3204.4,3203.3,1.2598642]
[1768333452239,4.66776424,3204.4,3203.4,1.29008103]
[1768333452431,7.78847326,3204.4,3203.9,0.001]
[1768333452630,4.66776424,3204.4,3203.9,0.001]
[1768333453580,3.36570902,3204.4,3203.9,0.001]
[1768333453750,3.12070902,3204.4,3203.9,0.001]
[1768333454075,3.12070902,3204.4,3203.9,0.03221196]
[1768333454235,3.12261163,3204.5,3203.9,0.001]
[1768333454440,6.24322326,3204.5,3203.9,0.001]
[1768333454870,7.54527848,3204.5,3203.9,0.001]
[1768333455167,1.30205522,3204.4,3203.9,0.001]
[1768333455669,1.30205522,3204.3,3203.9,0.001]
[1768333456373,3.12090381,3204.2,3203.9,0.001]
[1768333456569,7.48074133,3204.2,3203.9,0.001]
[1768333457278,1.23893371,3204.1,3203.9,0.001]
[1768333457779,1.23893371,3204.1,3203.3,0.001]
[1768333458765,3.12109862,3204.0,3203.3,0.001]
[1768333459366,1.23893371,3203.9,3203.3,0.001]
[1768333459969,0.74810397,3204.0,3203.3,0.001]
[1768333460167,3.1210233,3204.1,3203.3,1.29032657]
[1768333461096,4.35995701,3204.1,3203.3,1.29032657]
[1768333461301,4.35995701,3204.1,3203.3,1.25910877]
[1768333462195,4.35995701,3204.1,3203.3,0.001]
[1768333462369,5.13254434,3204.1,3203.3,0.001]
[1768333464202,1.23893371,3204.0,3203.3,0.001]
[1768333464408,1.23893371,3204.0,3203.6,0.001]
[1768333465301,4.36008886,3204.0,3203.6,0.001]
[1768333467004,1.23893371,3203.9,3203.6,0.001]
[1768333467802,4.36015226,3203.9,3203.6,0.001]
[1768333468014,3.12121855,3203.9,3203.6,0.001]
[1768333468216,1.23893371,3203.8,3203.6,0.001]
[1768333470398,3.12124465,3203.9,3203.6,0.001]